Cogmind - Beta 16 @@@ ROGUE MODE // 2025.11.26 @ 20:59:32 Player: Skysub Result: Self-destructed Performance ------------- Evolutions (2) 1000 Regions Visited (3) 600 Robots Destroyed (2) 10 Value Destroyed (8) 8 Prototype IDs (0) 0 Alien Tech Used (0) 0 Bonus (470) 470 TOTAL SCORE: 2088 Bonus ------- Pacifist 470 Cogmind --------- Core Integrity 521/550 Matter 274/300 Energy 67/100 System Corruption 0% Temperature Cool (4) Movement Flying (37) Location -8/Materials Parts ------- > --- POWER (1) -------- (None) > --- PROPULSION (4) --- Xenon Bombardment Thruster Xenon Bombardment Thruster Xenon Bombardment Thruster > --- UTILITY (4) ------ Improved Signal Interpreter Hacking Suite > --- WEAPON (2) ------- Axe > --- INVENTORY (5) ---- Improved Cooling System Improved Terrain Scanner Transmission Jammer Grenade Launcher Heavy Hammer Peak State ------------ > --- POWER ------------ (None) > --- PROPULSION ------- Xenon Bombardment Thruster Xenon Bombardment Thruster Xenon Bombardment Thruster > --- UTILITY ---------- Improved Signal Interpreter Hacking Suite > --- WEAPON ----------- Heavy Hammer Axe > --- INVENTORY -------- Improved Cooling System Improved Terrain Scanner Transmission Jammer Grenade Launcher [Rating: 24] Favorites ----------- Power Light Ion Engine Engine Light Ion Engine Propulsion Xenon Bombardment Thruster Flight Unit Xenon Bombardment Thruster Utility Improved Signal Interpreter Processor Improved Signal Interpreter Hackware Hacking Suite Weapon Heavy Hammer Impact Weapon Heavy Hammer Slashing Weapon Axe Build | -11 -10 -9 -8 ------- Run | Yrd Mat Mat Mat Slots Evolved 4 | . . 2 2 Power . | . . . . Propulsion 2 | . . 1 1 Utility 2 | . . 1 1 Weapon . | . . . . Parts Attached 9 | . . 1 8 Power 1 | . . . 1 Engine 1 | . . . 1 Core . | . . . . Reactor . | . . . . Propulsion 4 | . . . 4 Treads . | . . . . Leg . | . . . . Wheel . | . . . . Hover . | . . . . Flight 4 | . . . 4 Utility 2 | . . 1 1 Device . | . . . . Storage . | . . . . Processor 1 | . . 1 . Hackware 1 | . . . 1 Protection . | . . . . Artifact . | . . . . Weapon 2 | . . . 2 Energy Gun . | . . . . Energy Cannon . | . . . . Ballistic Gun . | . . . . Ballistic Cannon . | . . . . Launcher . | . . . . Special Weapon . | . . . . Impact Weapon 1 | . . . 1 Slashing Weapon 1 | . . . 1 Piercing Weapon . | . . . . Special Melee Weapon . | . . . . Unidentified Prototypes . | . . . . Parts Lost 2 | . . . 2 Power 1 | . . . 1 Propulsion 1 | . . . 1 Utility . | . . . . Weapon . | . . . . Highest Loss Streak 2 | . . . 2 To Critical Strikes . | . . . . Average Backups 2 | . 1 2 3 Power . | . 1 1 . Propulsion . | . . . . Utility . | . . . 2 Weapon 1 | . . 1 1 Tool/Special . | . . . . Unused Backups 4 | . . . 4 Power . | . . . . Propulsion . | . . . . Utility 3 | . . . 3 Weapon 1 | . . . 1 Tool/Special . | . . . . Average Slot Usage (%) 25 | . . 6 48 Engine 1 | . . . 3 Flight 13 | . . . 28 Processor 6 | . . 6 9 Impact Weapon 1 | . . . 3 Peak Build Rating 24 | . . 3 24 Average Rating 9 | . . 1 19 On Entrance . | . . . 3 Avg Prop Armor Cover (%) 8 | . . . 8 Naked Turns 84 | . 57 27 . Heaviest Build 6 | . . . 6 Greatest Support 24 | 3 3 3 24 Greatest Overweight (x) . | . . . . Average Overweight (x) . | . . . . Largest Inventory Capacity 5 | 5 5 5 5 Average Capacity 5 | 5 5 5 5 Most Carried 5 | 1 2 3 5 Average Carried 3 | . 1 2 4 Final Capacity 5 | 5 5 5 5 Final Carried 5 | 1 2 3 5 Class Distribution -------------------- 79% | Mutant 20% | Sprinter Dominant Class ---------------- Mutant | -10/Materials Mutant | -9/Materials Mutant | -8/Materials Resources | -11 -10 -9 -8 ----------- Run | Yrd Mat Mat Mat Matter Collected 252 | 200 . . 52 Remotely . | . . . . Salvage Created 109 | . . . 109 Parts 5 | . . . 5 Haulers Intercepted 1 | . . . 1 Recyclers Shooed 1 | . . . 1 Parts Field Recycled . | . . . . Retrieved Matter . | . . . . Parts Self-Destructed . | . . . . Prevented . | . . . . Parts Restored . | . . . . Kills | -11 -10 -9 -8 ------- Run | Yrd Mat Mat Mat Combat Hostiles Destroyed . | . . . . Classes Destroyed 2 | . . . 2 Hauler 1 | . . . 1 Recycler 1 | . . . 1 Best Kill Streak 2 | . . . 2 Combat Bots Only . | . . . . Max Kills in Single Turn 1 | . . . 1 Gunslinging . | . . . . Exploded . | . . . . Melee . | . . . . Uniques/NPCs Destroyed . | . . . . Combat | -11 -10 -9 -8 -------- Run | Yrd Mat Mat Mat Hostile Shots Fired 54 | . 9 22 23 Missed 26 | . 1 10 15 Hits 28 | . 8 12 8 Projectile 28 | . 8 12 8 Critical Strikes 1 | . . . 1 Damage Taken 384 | . 89 170 125 Core 285 | . 89 167 29 Absorbed by Shields . | . . . . Core Remaining (%) 74 | 100 64 58 . Volleys Fired . | . . . . Largest . | . . . . Hottest . | . . . . Shots Fired . | . . . . Gun . | . . . . Cannon . | . . . . Launcher . | . . . . Special . | . . . . Kinetic . | . . . . Thermal . | . . . . Explosive . | . . . . Electromagnetic . | . . . . Robot Hit Streak . | . . . . Robot Miss Streak . | . . . . Penetration Max . | . . . . Secondary Targets . | . . . . Shots Hit Robots 3 | . . . 3 Core Hits 3 | . . 1 2 Critical Kills 1 | . . . 1 Critical Parts Destroyed . | . . . . Critical Strikes 1 | . . . 1 Smash 1 | . . . 1 Melee Attacks 5 | . . . 5 Impact 5 | . . . 5 Slashing . | . . . . Piercing . | . . . . Sneak Attacks 3 | . . . 3 Combat Hostiles . | . . . . Follow-up Attacks . | . . . . Damage Inflicted 194 | . . 7 187 Guns . | . . . . Cannons . | . . . . Explosions . | . . . . Melee 187 | . . . 187 Ramming 7 | . . 7 . Kinetic . | . . . . Thermal . | . . . . Explosive . | . . . . Electromagnetic . | . . . . Impact 187 | . . . 187 Slashing . | . . . . Piercing . | . . . . Highest Corruption . | . . . . Average Corruption . | . . . . Corruption Purged . | . . . . Corruption Blocked . | . . . . Overload Shots . | . . . . Overflow Damage . | . . . . Projectiles . | . . . . Explosions . | . . . . Melee . | . . . . Knockbacks 1 | . . . 1 Impact 1 | . . . 1 Kinetic . | . . . . Secondary . | . . . . Self-Inflicted Damage 3 | . . 3 . Shots . | . . . . Rammed 1 | . . 1 . Targets Rammed 1 | . . 1 . Kicked . | . . . . Crushed . | . . . . Highest Temperature 21 | . . . 21 Average Temperature 9 | . . . 9 Received Heat Transfer 186 | . 48 93 45 Siege Activations . | . . . . Martial Activations . | . . . . Shielding Activations . | . . . . Robots Disrupted . | . . . . Combat Hostiles . | . . . . Robots Corrupted . | . . . . Combat Hostiles . | . . . . Parts Fried . | . . . . Impact Corruptions . | . . . . Robots Melted . | . . . . Combat Hostiles . | . . . . Parts Melted . | . . . . Heat Transferred . | . . . . Parts Sabotaged . | . . . . Parts Stolen . | . . . . Parts Stripped . | . . . . Power Chain Reactions . | . . . . Alert | -11 -10 -9 -8 ------- Run | Yrd Mat Mat Mat Maximum Alert Level . | . . . . Low Security (%) 100 | 100 100 100 100 Level 1 . | . . . . Level 2 . | . . . . Level 3 . | . . . . Level 4 . | . . . . Level 5 . | . . . . High Security . | . . . . Max Security . | . . . . Peak Influence 78 | . 52 21 78 Initial 21 | . . 21 . Average 16 | . 19 9 19 Influence Increases 196 | . 62 . 134 Destroy 0b10 Robot/NC 10 | . . . 10 Destroy Leader 2 | . . . 2 Successful Hack 17 | . 17 . . Destroy Structure 2 | . . . 2 Lose Combat Pursuer 165 | . 45 . 120 Influence Decreases 103 | . 10 52 41 Entered New Map 31 | . . 31 . Time Decay 62 | . 10 21 31 Lost Part 10 | . . . 10 Squads Dispatched 4 | . 2 2 . Investigation 3 | . 2 1 . Extermination . | . . . . Reinforcement 1 | . . 1 . Assault . | . . . . Garrison . | . . . . Intercept . | . . . . Searches Triggered . | . . . . Construction Impeded . | . . . . Haulers Reinforced . | . . . . Active Scanning Responses . | . . . . Cargo Convoy Interrupts . | . . . . Stealth | -11 -10 -9 -8 --------- Run | Yrd Mat Mat Mat Distress Signals 3 | . 1 2 . Communications Jammed . | . . . . Distress Signals . | . . . . Times Spotted 26 | . 7 9 10 Peak Tracking Total 9 | . 6 9 9 Tactical Retreats 5 | . 1 . 4 Traps | -11 -10 -9 -8 ------- Run | Yrd Mat Mat Mat Traps Triggered . | . . . . Indirectly . | . . . . Trap Hack Attempts . | . . . . Triggered . | . . . . Disarmed . | . . . . Reprogrammed . | . . . . Reused . | . . . . Traps Extracted . | . . . . Installed . | . . . . Triggered . | . . . . Machines | -11 -10 -9 -8 ---------- Run | Yrd Mat Mat Mat Machines Disabled . | . . . . Max in Single Turn . | . . . . Machines Repaired . | . . . . Machines Dismantled . | . . . . Machines Sabotaged . | . . . . Overloaded Fab Kills . | . . . . Hacking | -11 -10 -9 -8 --------- Run | Yrd Mat Mat Mat Machines Accessed 4 | . 2 1 1 Terminals 4 | . 2 1 1 Fabricators . | . . . . Repair Stations . | . . . . Recycling Units . | . . . . Scanalyzers . | . . . . Garrison Access . | . . . . Total Hacks 15 | . 8 4 3 Successful 5 | . 3 1 1 Failed 10 | . 5 3 2 Catastrophic 4 | . 2 1 1 Database Lockouts . | . . . . Manual 15 | . 8 4 3 Terminals 15 | . 8 4 3 Fabricators . | . . . . Repair Stations . | . . . . Recycling Units . | . . . . Scanalyzers . | . . . . Garrison Access . | . . . . Terminal Hacks 1 | . 1 . . Level Access Points 1 | . 1 . . Fabricator Hacks . | . . . . Repair Station Hacks . | . . . . Recycling Unit Hacks . | . . . . Scanalyzer . | . . . . Garrison Access Hacks . | . . . . Unauthorized Hacks 4 | . 2 1 1 Terminals 4 | . 2 1 1 Botnet 4 | . 2 1 1 Fabricators . | . . . . Repair Stations . | . . . . Recycling Units . | . . . . Scanalyzers . | . . . . Garrison Access . | . . . . Data Cores Recovered . | . . . . Used . | . . . . Hacking Detections 4 | . 2 1 1 Full Trace Events 4 | . 2 1 1 Feedback Events . | . . . . Feedback Blocked . | . . . . Robot Schematics Acquired . | . . . . Robots Built . | . . . . Authchips . | . . . . Time . | . . . . Total Robot Build Rating . | . . . . Part Schematics Acquired . | . . . . Parts Built . | . . . . Authchips . | . . . . Time . | . . . . Total Part Build Rating . | . . . . Part Studies Acquired . | . . . . Parts Repaired . | . . . . Time . | . . . . Parts Recycled . | . . . . Recycled Matter . | . . . . Retrieved Matter . | . . . . Retrieved Components . | . . . . Parts Scanalyzed . | . . . . Part Schematics Acquired . | . . . . Parts Damaged . | . . . . Bothacking | -11 -10 -9 -8 ------------ Run | Yrd Mat Mat Mat Used RIF Installer . | . . . . Robots Hacked . | . . . . Non-combat . | . . . . Combat . | . . . . Robot Hacks Applied . | . . . . Relay Couplers Released . | . . . . Fabnet Peak Effective % . | . . . . Robots Rewired . | . . . . Allies Hacked . | . . . . Hacks Repelled . | . . . . Allies | -11 -10 -9 -8 -------- Run | Yrd Mat Mat Mat Total Allies . | . . . . Largest Group . | . . . . Highest-Rated Group . | . . . . Highest-Rated Ally . | . . . . Total Orders . | . . . . Ally Attacks . | . . . . Total Damage . | . . . . Kills . | . . . . Allies Corrupted . | . . . . Allies Melted . | . . . . Intel | -11 -10 -9 -8 ------- Run | Yrd Mat Mat Mat Active Infowar (turns) . | . . . . Robot Analysis Total . | . . . . Derelict Logs Recovered . | . . . . Drone Launches . | . . . . Drone Recoveries . | . . . . Exploration | -11 -10 -9 -8 ------------- Run | Yrd Mat Mat Mat Turns Passed 271 | 14 57 68 132 Spaces Moved 561 | 26 111 128 296 Core 273 | 26 111 128 8 Treads . | . . . . Legs . | . . . . Wheels . | . . . . Hover . | . . . . Flight 288 | . . . 288 Fastest Speed 31 | 50 50 50 31 Average Speed 41 | 50 50 50 34 Slowest Speed 50 | 50 50 50 50 Overloaded Moves . | . . . . Propulsion Burnouts . | . . . . Robots Hopped 2 | . . . 2 Potential Cave-ins . | . . . . Cave-ins Triggered . | . . . . Exploration Rate (%) 22 | 4 33 24 28 Regions Visited 3 Branch Regions . Pre-discovered Areas . | . . . . Known Exits Taken 2 | . 1 1 . Unknown Exits Taken 1 | 1 . . . Scrap Searched . | . . . . Spaces Dug 2 | . . . 2 Terrain Destroyed 2 | . . . 2 Melee 2 | . . . 2 Projectile . | . . . . AOE . | . . . . Terrain Rammed . | . . . . Walls Destroyed . | . . . . Machines Disabled . | . . . . Actions | -11 -10 -9 -8 --------- Run | Yrd Mat Mat Mat Total 580 | 26 111 130 313 Wait 2 | . . . 2 Move 554 | 25 110 127 292 Hop 2 | . . . 2 Pick Up 6 | 1 1 1 3 Fast Attach 7 | . . 1 6 Attach 2 | . . . 2 Detach 1 | . . . 1 Swap . | . . . . Drop . | . . . . Fire . | . . . . Melee 5 | . . . 5 Ram 1 | . . 1 . Kick . | . . . . Crush . | . . . . Escape Stasis . | . . . . Rewire . | . . . . Trap . | . . . . Miscellaneous . | . . . . Route ------- -11/Scrapyard -10/Materials (discovered 3 exits: *Mat x3) -9/Materials (discovered 2 exits: *Mat / [*Min]) -8/Materials History --------- Turn | Location | Event 7 | -11/Scrapyard | Discovered new exit (range 16) 15 | -11/Scrapyard | Entered Materials 65 | -10/Materials | Identified exit to Materials 72 | -10/Materials | Entered another Materials area 72 | -9/Materials | Evolved 2 slots: Propulsion x1, Utility x1 96 | -9/Materials | Discovered new exit (range 12) 133 | -9/Materials | Discovered new exit (range 14) 139 | -9/Materials | Identified exit to Materials 140 | -9/Materials | Entered another Materials area 140 | -8/Materials | Evolved 2 slots: Propulsion x1, Utility x1 272 | -8/Materials | Self-destructed Last Messages --------------- 00226_ Sneak attack on A-02 Transporter. 00226_ A-02 Transporter suffers critical hit (Smash). 00226_ A-02 Transporter destroyed. 00226_ K-01 Serf collects debris. 00228_ R-06 Scavenger collects Ion Engine. 00229_ Sneak attack on R-06 Scavenger. 00229_ R-06 Scavenger destroyed. 00230_ R-06 Scavenger collects Ion Engine. 00232_ Sneak attack on R-06 Scavenger. 00232_ R-06 Scavenger knocked back. 00232_ K-01 Serf collects debris. 00236_ Acquired 52 matter. 00241_ Acquired Hacking Suite. 00247_ Acquired Axe. 00258_ Connecting with Terminal... >>Trojan(Botnet) Trojan loaded successfully. Testing... Terminal linked with 0 systems. Awaiting botnet instructions. Map ----- +----------------------------------------------------+ | | | | | | | | | | | | | | | | | ????????????????????????????? | | ????????????????????????????? | | ????????????????????????????? | | ????????????????????????????? | | ????????????????????????????? | | ??????????########??????????? | | ??????????# #??????????? | | ??????????# #??????????? | | ??????????# """ #??????????? | | ??????????# """ #??????????? | | ??????????# """ #??????????? | | ??????????# #??????????? | | ??????????####+############## | | ????????????## | | ??####???? ## ! | | ??# #?? ## !|! | | ??# # """ss## =| | | | ??# @/ """ ## ##+########### | | ??# # """ ## # ! #????# | | ??# #?? ## # / #????# | | ??# #?#+?#### # #????# | | ??# #?# #???# # !#????# | | ??# ### ##??# + #????# | | ??# #### #########????# | | ??# #????????????# | | ??## ### #????????????# | | ???# #?# #????????????# | | ???# #?# #????????????# | | ???# #?# #????????????# | | ???# #?# +????????????# | | ???# #######+###????????????# | | ???# ## T #????????????# | | ???# ## #????????????# | | ???# + """ #????????????# | | ???# # """"" #????????????# | | ???# # """"" #????????????# | | ???# + """"" #????????????# | | ???# ## """ #????????????# | | ???# ## =#????????????? | | ???# ## / / #????????????? | | ???# #######?###????????????? | | ???# #??????????????????????? | +----------------------------------------------------+ Best States ------------- Heat Dissipation 31 Energy Generation 10 Energy Capacity 125 Matter Stores 300 Matter Capacity 300 Sight Range 16 Terrain Scan Density 10 Evasion (%) 63 Offensive Hacking 10 Item Schematics ----------------- None Robot Schematics ------------------ None Fabricated ------------ Nothing Repaired ---------- Nothing Studied --------- None Alien Tech Used ----------------- None Achievements -------------- None Challenges ------------ None Game ------ Seed SpliceVariableAutohacker Manual? 0 Play Time 00:05:28 Cumulative 290.3 hours Start 2025.11.26 @ 20:55:54 End 2025.11.26 @ 20:59:32 Sessions 1 Manual Loads 0 Difficulty Rogue Special Mode None Game No. 338 Rogue 338 Adventurer 0 Explorer 0 Win Type - Total 18 Types 11/0/3/1/1/0/0/1/0/1 Lore% 77 Gallery% 75 Achievement% 57 Wizard Run 0 Options --------- Layout 1 ASCII 0 Keyboard 1 Movement Numpad Keybinds 0 Fullscreen 0 Font 32/SmallcapsGlow Map View 77x35 Zoom Use 0% Tactical HUD 1 Map Filters NONE Filters NONE Steam 1 RUN: edf32de7-70ef-4c2f-941f-50f904d6dca0